[Event "Romanian Superleague 2022"]
[Site "Oradea"]
[Date "2022.09.22"]
[Round "2.28"]
[White "Georgescu, Tiberiu-Marian"]
[Black "Oprisor, Razvan-Gabriel"]
[Result "1-0"]
[ECO "E60"]
[WhiteElo "2477"]
[BlackElo "2175"]
[Annotator "TA"]
[PlyCount "95"]
[EventDate "2022.09.21"]
[EventType "team-tourn"]
[EventCountry "ROU"]
[SourceTitle "playchess.com"]
[Source "ChessBase"]
[SourceQuality "1"]
[TimeControl "40/5400+30:1800+30"]

{[%evp 21,95,16,12,0,0,0,16,0,29,0,30,17,37,0,53,40,59,65,103,39,72,18,27,7,26,9,75,83,83,83,124,100,139,71,63,74,106,90,93,98,68,80,62,59,155,108,177,97,97,97,97,97,97,97,97,97,97,97,247,207,350,346,452,409,552,533,492,345,329,314,2361,1866,1316,939,902,785]} 1. Nf3 {[%emt 0:00:21]} Nf6 {[%emt 0:00:40]} 2. g3 {[%emt 0:00:06]} g6 {[%emt 0:00:39]} 3. b3 {[%emt 0:00:07]} Bg7 {[%emt 0:00:41]} 4. Bb2 {[%emt 0:00:04]} c5 {[%emt 0:04:39]} 5. c4 {[%emt 0:01:11]} Nc6 {[%emt 0:01:23]} 6. Bg2 {[%emt 0:00:10]} d6 {[%emt 0:03:06]} 7. d4 {[%emt 0:01:50]} cxd4 {[%emt 0:01:59]} 8. Nxd4 {[%emt 0:00:15]} Bd7 {[%emt 0:01:24]} 9. Nc3 {[%emt 0:02:45]} O-O {[%emt 0:03:16]} 10. O-O {[%emt 0:01:25]} Qa5 {[%emt 0:04:18]} 11. e3 {[%emt 0:02:30]} Rac8 {[%emt 0:03:30]} 12. h3 {[%emt 0:06:12] E60: King's Indian: Unusual lines and Fianchetto Variation without Nc3.} a6 {[%emt 0:03:30][%cal Ob7b5]} 13. a3 {[%emt 0:13:46]} Rfe8 {[%emt 0:11:12]} (13... b5 {feels hotter.} 14. cxb5 Nxd4 15. Qxd4 Nh5) 14. Rc1 {[%emt 0:02:04] The position is equal.} Qb6 {[%emt 0:07:16] [#]} 15. Ba1 $146 {[%emt 0:17:50]} (15. Na4 $5 {[%cal Ra4b6]} Qd8 16. c5 $11) ({Predecessor:} 15. g4 h6 16. Rb1 Qc7 17. Rc1 Qb6 18. Rb1 Qc7 19. Nde2 Na5 {½-½ (36) Mikhalevski,V (2535)-Li,R (2460) Las Vegas 2015}) 15... Ne5 {[%emt 0:11:09]} 16. Kh2 {[%emt 0:03:17]} h5 {[%emt 0:06:06]} 17. Nce2 {[%emt 0:12:19]} Rc7 {[%emt 0:02:43]} (17... Nc6 $11) 18. Qd2 $14 {[%emt 0:00:45]} Rec8 {[%emt 0:03:56]} 19. Bc3 {[%emt 0:10:03]} Qa7 {[%emt 0:04:54]} 20. a4 {[%emt 0:00:04]} (20. f4 $16) 20... Be8 {[%emt 0:03:47]} 21. a5 {[%emt 0:00:47]} (21. f4 $16 Ned7 22. f5) 21... Ned7 $11 {[%emt 0:06:05][%cal Be5d7,Bd7c5,Bc5e4][%mdl 32]} 22. Qa2 {[%emt 0:07:39]} Nc5 {[%emt 0:03:01]} 23. Rfd1 {[%emt 0:00:02]} Bc6 {[%emt 0:03:54]} (23... e5 $11) 24. Nxc6 $16 {[%emt 0:01:07]} bxc6 {[%emt 0:00:09]} 25. b4 {[%emt 0:01:08]} Nce4 {[%emt 0:01:53]} 26. Be1 {[%emt 0:01:01]} e6 {[%emt 0:02:44]} 27. Nc3 {[%emt 0:06:56]} (27. f3 $142 $1 {[%cal Rf3e4]}) 27... Nxc3 {[%emt 0:02:48]} 28. Bxc3 {[%emt 0:00:04]} d5 {[%emt 0:00:09]} 29. Qb2 {[%emt 0:05:38]} Ne8 {[%emt 0:00:22]} 30. Bxg7 {[%emt 0:00:05]} Nxg7 {[%emt 0:00:04]} 31. e4 {[%emt 0:00:34]} dxc4 {[%emt 0:02:35][%cal Oh5h4]} 32. Rxc4 {[%emt 0:00:44]} e5 {[%emt 0:00:22] [#]} (32... c5 $1 $14) 33. h4 {[%emt 0:00:14]} (33. Rd2 $142 $1) 33... Ne6 {[%emt 0:00:21] [#]} 34. Bh3 {[%emt 0:00:10]} ({Worse is} 34. Qxe5 Qxf2 35. Rdc1 Rd8 $11) ({Better is} 34. Rd6 $1 $18) 34... Re8 {[%emt 0:00:21]} 35. Bxe6 {[%emt 0:00:17]} Rxe6 {[%emt 0:00:04]} 36. Rd8+ {[%emt 0:01:45]} Kg7 {[%emt 0:00:10]} 37. Rc5 {[%emt 0:00:28]} Rce7 {[%emt 0:01:22]} 38. Qd2 {[%emt 0:01:50]} Qb7 {[%emt 0:00:45]} 39. Kg2 {[%emt 0:00:53] White has more active pieces.} f6 {[%emt 0:00:24] Black cannot hold the game after this.} (39... Kh7 $16 {keeps fighting.}) 40. Kg1 {[%emt 0:00:00] Black must now prevent Rc1.} Rf7 {[%emt 0:00:00]} (40... Rc7 {was worth a try.} 41. Kg2 Rf7) 41. Rc1 $18 {[%emt 0:04:35][%cal Bc5c1,Bc1d1,Bd1d7][%mdl 32]} Rfe7 {[%emt 0:09:32]} 42. Rd1 {[%emt 0:02:55]} Qc7 {[%emt 0:07:34]} 43. Qc3 {[%emt 0:08:57]} Qb7 {[%emt 0:04:02]} 44. Qc5 {[%emt 0:02:35]} Qb5 {[%emt 0:02:57]} 45. Ra8 {[%emt 0:00:37]} Qe2 {[%emt 0:04:46] [#]} (45... f5 46. Qe3 f4 47. gxf4 exf4 48. Qxf4 Qe5 49. Qxe5+ (49. Qf8+ Kh7 $18) 49... Rxe5) 46. Rd7 $3 {[%emt 0:01:23][%mdl 512] White is clearly winning.} Kf7 {[%emt 0:02:12]} 47. Rxe7+ {[%emt 0:00:48]} Rxe7 {[%emt 0:00:12]} 48. Qxc6 {[%emt 0:00:45] Weighted Error Value: White=0.23 (precise) /Black=0.38} 1-0

[Event "Romanian Superleague 2022"]
[Site "Oradea"]
[Date "2022.09.22"]
[Round "2.29"]
[White "Ursente, Tudor-Alexandru"]
[Black "Costachi, Mihnea"]
[Result "0-1"]
[ECO "A36"]
[WhiteElo "1931"]
[BlackElo "2470"]
[Annotator "TA"]
[PlyCount "104"]
[EventDate "2022.09.21"]
[EventType "team-tourn"]
[EventCountry "ROU"]
[SourceTitle "playchess.com"]
[Source "ChessBase"]
[SourceQuality "1"]
[TimeControl "40/5400+30:1800+30"]

{[%evp 12,104,15,8,16,8,14,6,27,19,49,53,56,58,50,24,25,19,34,20,43,21,21,21,21,21,21,21,21,18,20,11,14,18,28,0,11,9,20,20,24,0,22,0,0,-7,0,-29,-29,-29,-29,-29,-29,-31,-28,-35,0,0,0,0,0,-67,0,0,0,0,0,-8,-6,-161,-157,-149,-158,-147,-142,-146,-148,-153,-145,-290,-260,-273,-242,-652,-642,-642,-608,-743,-645,-707,-716,-654,-624,-552,-504]} 1. c4 {[%emt 0:00:04]} Nf6 {[%emt 0:01:25]} 2. Nc3 {[%emt 0:01:09]} g6 {[%emt 0:00:53]} 3. g3 {[%emt 0:03:30]} Bg7 {[%emt 0:00:06]} 4. Bg2 {[%emt 0:00:04]} O-O {[%emt 0:00:24]} 5. e4 {[%emt 0:00:09]} c5 {[%emt 0:04:12]} 6. Nge2 {[%emt 0:00:07]} Nc6 {[%emt 0:00:14]} 7. d3 {[%emt 0:01:55]} a6 {[%emt 0:00:15] A36: Symmetrical English vs ...g6: 4 Bg2 Bg7.} 8. O-O {[%emt 0:07:44]} Rb8 {[%emt 0:02:05]} 9. a4 {[%emt 0:00:06]} Ne8 {[%emt 0:00:42] The position is equal.} 10. Be3 {[%emt 0:04:00]} Nd4 {[%emt 0:02:16]} 11. Rb1 {[%emt 0:02:36]} Nc7 {[%emt 0:03:26][%cal Be8c7,Bc7e6,Be6d4][%mdl 32]} 12. b4 {[%emt 0:11:26]} d6 {[%emt 0:01:37]} 13. b5 {[%emt 0:03:44]} (13. bxc5 {feels hotter.} dxc5 14. Nd5 Bg4 15. f3) 13... axb5 {[%emt 0:02:02]} 14. axb5 {[%emt 0:00:01]} Nce6 {[%emt 0:01:26]} 15. Qd2 {[%emt 0:01:24] [#]} Qa5 $146 {[%emt 0:12:39]} ({Predecessor:} 15... Re8 16. f4 f5 17. h3 Ra8 18. g4 Ra3 19. b6 Nxe2+ 20. Nxe2 Ra6 21. exf5 gxf5 22. gxf5 {0-1 (33) Van der Eyk,D (2010)-Van Delft,M (2384) Leiden 2017}) 16. Nxd4 {[%emt 0:21:02]} Nxd4 {[%emt 0:04:17]} 17. Nd5 {[%emt 0:07:16][%csl LRa5,LRe7]} Qd8 {[%emt 0:00:44]} 18. Bh6 {[%emt 0:00:10]} Bh3 {[%emt 0:01:59]} 19. Bxg7 {[%emt 0:02:35]} Kxg7 {[%emt 0:00:11]} 20. f4 {[%emt 0:01:11]} Bxg2 {[%emt 0:00:06]} 21. Kxg2 {[%emt 0:00:24]} e6 {[%emt 0:00:53] Against f5} 22. Ne3 {[%emt 0:00:16]} f5 {[%emt 0:01:12]} 23. Nc2 {[%emt 0:17:00]} Qf6 {[%emt 0:04:59]} 24. Rfe1 {[%emt 0:00:09]} Nxc2 {[%emt 0:04:54]} 25. Qxc2 {[%emt 0:00:01]} e5 {[%emt 0:00:06]} 26. Qd2 {[%emt 0:04:47]} (26. fxe5 {looks sharper.} Qxe5 27. exf5 Qxf5 28. Re7+) 26... Ra8 {[%emt 0:11:40]} 27. Re2 {[%emt 0:02:02]} (27. fxe5 {is more complex.} Qxe5 28. exf5 Qxf5 29. Re7+) 27... exf4 {[%emt 0:14:07][%cal Of4f3] [#] Threatens to win with ...f3+!} 28. Qxf4 {[%emt 0:00:24]} fxe4 {[%emt 0:04:47]} 29. Qxf6+ {[%emt 0:02:16]} Rxf6 {[%emt 0:00:04]} 30. dxe4 $11 {[%emt 0:01:26][%mdl 4096] Endgame KRR-KRR} Ra4 {[%emt 0:00:42]} 31. Rc1 {[%emt 0:01:57]} Re6 {[%emt 0:01:31]} 32. Rc3 {[%emt 0:00:47]} Kf6 {[%emt 0:00:41]} 33. Kf3 {[%emt 0:00:20]} Ke5 {[%emt 0:03:07]} 34. Rd2 {[%emt 0:00:57]} Rf6+ {[%emt 0:00:07]} 35. Ke3 {[%emt 0:00:05]} Ra1 {[%emt 0:02:09] Strongly threatening ...Re1+.} 36. Rd5+ {[%emt 0:02:28]} Ke6 {[%emt 0:00:01] Black is more active.} 37. Rcd3 {[%emt 0:00:09]} Ke7 {[%emt 0:00:14]} 38. Rd1 {[%emt 0:01:28] Inhibits Re1+.} Ra3+ {[%emt 0:05:26]} 39. Ke2 {[%emt 0:01:42]} Rff3 {[%emt 0:02:10] Hoping for ...Rae3+.} 40. R5d3 {[%emt 0:00:00] Against Rae3+. White does not recover from this.} (40. R1d2 $1 $11) 40... Rfxd3 $19 {[%emt 0:00:00]} 41. Rxd3 {[%emt 0:01:07] KR-KR} Ra4 {[%emt 0:02:52]} 42. Rc3 {[%emt 0:06:02] [#]} Ke6 $1 {[%emt 0:02:32]} 43. Kd3 {[%emt 0:03:34]} Ke5 {[%emt 0:00:39]} 44. Ke3 {[%emt 0:00:35]} b6 {[%emt 0:00:31]} 45. Kd3 {[%emt 0:01:15]} (45. h4 $17) 45... Ra1 {[%emt 0:16:33]} 46. Rb3 {[%emt 0:01:59]} g5 {[%emt 0:01:39]} 47. h4 $2 {[%emt 0:13:16]} (47. Rc3) 47... gxh4 {[%emt 0:03:25] Black is clearly winning.} 48. gxh4 {[%emt 0:00:06]} h5 {[%emt 0:00:46]} 49. Ke3 {[%emt 0:03:03]} Re1+ {[%emt 0:00:31]} 50. Kd3 {[%emt 0:00:06]} Rh1 {[%emt 0:00:51] ( -> ...Rh3+)} 51. Kd2 {[%emt 0:00:54]} Rh2+ {[%emt 0:00:05]} 52. Kc1 {[%emt 0:00:14]} Rxh4 {[%emt 0:00:06] Weighted Error Value: White=0.27 (precise) /Black=0.05 (flawless)} 0-1

[Event "Romanian Superleague 2022"]
[Site "Oradea"]
[Date "2022.09.22"]
[Round "2.30"]
[White "Toma, Radu-Cristian"]
[Black "Gulie, Cosmin"]
[Result "1/2-1/2"]
[ECO "D46"]
[WhiteElo "2410"]
[BlackElo "1973"]
[Annotator "TA"]
[PlyCount "119"]
[EventDate "2022.09.21"]
[EventType "team-tourn"]
[EventCountry "ROU"]
[SourceTitle "playchess.com"]
[Source "ChessBase"]
[SourceQuality "1"]
[TimeControl "40/5400+30:1800+30"]

{[%evp 22,119,37,35,76,70,62,66,77,36,41,40,52,49,50,30,72,74,68,77,78,60,59,65,72,63,80,87,87,83,85,64,76,75,132,128,141,141,150,141,139,147,273,62,60,64,68,64,64,64,64,64,103,64,56,30,36,20,133,119,287,366,403,397,772,631,1115,1049,1699,1618,1448,1334,1141,746,735,729,613,262,226,134,138,113,135,81,1243,242,701,623,283,0,0,0,0,0,0,0,0,0,0,0]} 1. Nf3 {[%emt 0:00:08]} Nf6 {[%emt 1:31:00]} 2. d4 d5 3. c4 e6 4. e3 c6 5. Bd3 Nbd7 6. Nbd2 Bd6 7. e4 dxe4 8. Nxe4 Nxe4 9. Bxe4 Nf6 10. Bc2 Bb4+ 11. Bd2 Bxd2+ 12. Qxd2 b6 {D46: Semi-Slav: 5 e3 Nbd7 6 Bd3, Black avoids the Meran.} 13. Ne5 Bb7 14. O-O-O {[#]} Nd7 $146 {White is slightly better.} ({Predecessor:} 14... O-O 15. Rhe1 Nd7 16. Re3 Nxe5 17. dxe5 Qxd2+ 18. Rxd2 c5 19. f3 Rfc8 20. Ba4 Rc7 {1-0 (49) Valerga,D (2477)-Obregon,C (2517) Villa Martelli 2016}) 15. Nxd7 {White is much more active. The black rooks are badly placed.} (15. Qf4 {looks sharper.} O-O 16. Kb1 Rc8 17. Rhe1) 15... Qxd7 16. Qg5 g6 17. h4 Qe7 18. Rh3 Qxg5+ 19. hxg5 O-O-O 20. Be4 Rd7 21. Bf3 Kc7 22. Kc2 Bc8 {[%cal Oe6e5]} 23. Bg4 f5 24. gxf6 Rf7 25. Rh6 $1 Rxf6 26. Bf3 Rf7 27. Rdh1 g5 (27... c5 $142) 28. Kd3 g4 29. Bxg4 {Strongly threatening Bf3.} Rxf2 30. Rxh7+ Rxh7 31. Rxh7+ $16 {[%mdl 4096] Endgame KRB-KRB} Kd6 (31... Kb8 $16 {was called for.}) 32. Bf3 $2 ({Less strong is} 32. Rxa7 Rxg2 33. Be2 e5 $16) ({White must play} 32. b4 $1 $18 {Threatening mate with c5+.} c5 33. dxc5+ (33. Rxa7 Rxg2 34. Bf3 Rg3 $16) 33... bxc5 34. bxc5+ (34. Rxa7 Rxg2 35. Bf3 Rg3 $16) 34... Ke5 35. Rxa7 Rxg2 36. Bf3) 32... Rxb2 $14 33. Rxa7 c5 34. Kc3 Rf2 35. dxc5+ bxc5 36. a4 e5 37. Bd5 Re2 38. Kd3 {Prevents e4+.} Ra2 39. Ke3 Ra3+ (39... Bf5 $11 {remains equal.}) 40. Ke4 $16 {Hoping for Ra8.} Rg3 $2 (40... Ra1 $16 41. Ra8 Re1+ 42. Kf3 Bf5) 41. Ra8 $18 Rg4+ 42. Ke3 Bf5 (42... Bd7 43. a5 Kc7 44. Ra7+ Kd6 45. Ra6+ Kc7) 43. Rf8 Bd7 44. a5 Rg3+ 45. Rf3 Rg6 46. Be4 Rg7 47. Rf6+ Kc7 48. a6 Kb8 49. Bf3 (49. Bd5 $142 Ka7 50. Ke4) 49... Ka7 50. Ke4 ({Better is} 50. Bb7 $18) 50... Bc8 $16 {[%emt 0:00:00]} 51. Kxe5 {And now Bd5 would win.} Bxa6 {[%emt 0:00:00]} 52. Bd5 (52. Rf4 $142) 52... Rg4 $2 {[%emt 0:00:00][%mdl 8192] [#]} (52... Bxc4 $16 53. Bxc4 Rxg2) 53. Rf4 $2 (53. Rxa6+ $1 {[%mdl 512]} Kxa6 54. Kf5) 53... Rg3 $2 {[%emt 0:00:00]} (53... Rg5+ 54. Kf6 Rg3) 54. Rf3 $18 Rg4 {[%emt 0:00:00] [#]} 55. Kf5 $2 (55. Ra3 $1 $18) 55... Rxg2 $11 {[%emt 0:00:00] The position is equal.} 56. Ke5 {Intending Rf7+ and mate.} Rg4 {[%emt 0:00:00]} 57. Be6 Rd4 {[%emt 0:00:00]} 58. Rb3 Bxc4 {[%emt 0:00:00]} 59. Bxc4 Rxc4 {[%emt 0:00:00]} 60. Kd5 {Weighted Error Value: White=0.48/Black=0.21 (precise)} 1/2-1/2

[Event "Romanian Superleague 2022"]
[Site "Oradea"]
[Date "2022.09.23"]
[Round "3.1"]
[White "Berkes, Ferenc"]
[Black "Tarlev, Konstantin"]
[Result "1/2-1/2"]
[ECO "A46"]
[WhiteElo "2651"]
[BlackElo "2576"]
[Annotator "TA"]
[PlyCount "35"]
[EventDate "2022.09.21"]
[EventType "team-tourn"]
[EventCountry "ROU"]
[SourceTitle "playchess.com"]
[Source "ChessBase"]
[SourceQuality "1"]
[TimeControl "40/5400+30:1800+30"]

{[%evp 9,35,13,23,24,14,4,14,12,36,36,76,56,72,57,91,80,83,51,32,52,60,60,37,43,41,47,87,-31]} 1. d4 {[%emt 0:00:02]} Nf6 {[%emt 0:02:17]} 2. g3 {[%emt 0:00:09]} d5 {[%emt 0:00:38]} 3. Nf3 {[%emt 0:00:07]} e6 {[%emt 0:01:14]} 4. Bg2 {[%emt 0:00:07]} b5 {[%emt 0:01:24]} 5. O-O {[%emt 0:00:14]} Bb7 {[%emt 0:00:03]} 6. a4 {[%emt 0:00:25] A46: 1 d4 Nf6 2 Nf3 e6: Torre, London and Colle Systems.} b4 {[%emt 0:00:04]} 7. c4 {[%emt 0:00:20]} bxc3 {[%emt 0:02:02]} 8. Nxc3 {[%emt 0:00:11] The position is equal.} Nbd7 {[%emt 0:22:00]} 9. Bf4 {[%emt 0:03:22] aiming for Nb5.} a6 {[%emt 0:00:06] Inhibits Nb5.} 10. a5 {[%emt 0:09:04]} Be7 {[%emt 0:10:52]} 11. Qa4 {[%emt 0:07:23]} c5 {[%emt 0:06:50]} 12. dxc5 {[%emt 0:16:20] White is much more active.} Bxc5 {[%emt 0:01:07]} 13. b4 {[%emt 0:07:58]} Be7 {[%emt 0:01:16]} 14. b5 {[%emt 0:00:59] [#]} Nc5 $146 {[%emt 0:01:08]} ({Predecessor:} 14... axb5 15. Nxb5 O-O 16. Bc7 Qc8 17. Rfc1 Nc5 18. Qa3 Ba6 19. Bd6 Bxd6 20. Nxd6 Qd7 21. Qxc5 {1-0 (31) Efimenko,Z (2602)-Baskin,R (2390) Chess.com INT 2020}) 15. Qa2 {[%emt 0:00:41]} axb5 {[%emt 0:05:11]} 16. Nxb5 {[%emt 0:00:07] [#] And now Nc7+ would win.} O-O {[%emt 0:00:06]} 17. Rfc1 {[%emt 0:03:32]} Qd7 {[%emt 0:16:56]} 18. Nbd4 {[%emt 0:13:39] Weighted Error Value: White=0.06 (flawless) /Black=0.16 (very precise)} ({White should play} 18. Nc7 $16) 1/2-1/2

[Event "Romanian Superleague 2022"]
[Site "Oradea"]
[Date "2022.09.23"]
[Round "3.2"]
[White "Ionescu, Constantin"]
[Black "Lupulescu, Constantin"]
[Result "0-1"]
[ECO "A20"]
[WhiteElo "2415"]
[BlackElo "2614"]
[Annotator "TA"]
[PlyCount "76"]
[EventDate "2022.09.21"]
[EventType "team-tourn"]
[EventCountry "ROU"]
[SourceTitle "playchess.com"]
[Source "ChessBase"]
[SourceQuality "1"]
[TimeControl "40/5400+30:1800+30"]

{[%evp 14,76,13,-7,0,0,0,-42,-50,-52,-44,-42,-35,-97,-95,-94,-91,-101,-85,-104,-100,-88,-91,-95,-24,-235,-238,-264,-264,-279,-275,-286,-274,-283,-289,-271,-278,-316,-191,-200,-192,-337,-306,-351,-354,-357,-339,-400,-416,-519,-524,-529,-524,-676,-667,-846,-810,-734,-577,-29978,-29979,-29983,-29983,-29979,-29974]} 1. c4 {[%emt 0:00:03]} e5 {[%emt 0:02:28]} 2. g3 {[%emt 0:00:16]} c6 {[%emt 0:01:39]} 3. d4 {[%emt 0:00:23]} Bb4+ {[%emt 0:00:57]} 4. Bd2 {[%emt 0:00:16]} Bxd2+ {[%emt 0:00:10]} 5. Qxd2 {[%emt 0:00:11]} d6 {[%emt 0:00:19]} 6. Nc3 {[%emt 0:01:11]} Nf6 {[%emt 0:02:21]} 7. Bg2 {[%emt 0:01:01]} O-O {[%emt 0:01:41]} 8. e4 {[%emt 0:03:39] [#]} b5 $146 {[%emt 0:13:16] A20: English Opening: 1...e5.} ({Predecessor:} 8... Be6 9. b3 Qa5 10. Nge2 b5 11. d5 Bc8 12. cxb5 cxb5 13. a3 Qb6 14. O-O a5 15. Rfb1 Na6 16. b4 {1-0 (66) Balog,I (2550)-Balogh,C (2589) Hungary 2019}) 9. cxb5 {[%emt 0:07:36]} cxb5 {[%emt 0:00:11]} 10. d5 {[%emt 0:01:57]} b4 {[%emt 0:09:10] Black is slightly better.} 11. Nd1 {[%emt 0:00:12]} Na6 {[%emt 0:01:52]} 12. f3 {[%emt 0:05:25]} Nc5 {[%emt 0:03:41]} 13. Nh3 {[%emt 0:02:01] [#]} (13. Ne3 $15) 13... Qa5 $1 $17 {[%emt 0:05:56]} 14. Qe3 {[%emt 0:03:24] Inhibits Nb3.} Ba6 {[%emt 0:02:33] Threatens to win with ...Nd3+.} 15. Bf1 {[%emt 0:02:09] Inhibits Nd3+.} Ne8 {[%emt 0:08:47][%cal Bf6e8,Be8c7,Bc7b5,Bb5d4][%mdl 32]} 16. Nhf2 {[%emt 0:16:04]} Nc7 {[%emt 0:04:11]} 17. Bxa6 {[%emt 0:05:30]} Qxa6 {[%emt 0:00:08]} 18. Qe2 {[%emt 0:03:50]} Qa5 {[%emt 0:04:39] Black has more active pieces.} (18... Qxe2+ $17 19. Kxe2 Nb5) 19. Qc4 $2 {[%emt 0:06:51] [#] This costs White the game.} (19. Ne3 $1 $11 {and White has nothing to worry.}) 19... Nb5 $1 $19 {[%emt 0:04:11] Hoping for ...Nd4.} 20. O-O {[%emt 0:03:46]} Nd4 {[%emt 0:03:42]} 21. Nd3 {[%emt 0:03:09][%cal Bf2d3,Bd3b4,Bb4c6][%mdl 32] [#]} Ncb3 $1 {[%emt 0:01:36][%mdl 512]} 22. axb3 {[%emt 0:00:56]} Qxa1 {[%emt 0:00:03]} 23. Nxb4 {[%emt 0:10:30] [#]} Nxf3+ $1 {[%emt 0:00:55][%mdl 512]} 24. Rxf3 {[%emt 0:00:09] And now Qe2 would win.} Qxd1+ {[%emt 0:00:02]} 25. Kg2 {[%emt 0:00:10]} Rac8 {[%emt 0:07:25][%cal Ba8c8,Bc8c7,Bc7d7][%mdl 32]} 26. Nc6 {[%emt 0:00:10] Ne7+ is the strong threat.} Rc7 {[%emt 0:00:12] Inhibits Ne7+.} 27. b4 {[%emt 0:00:54]} (27. Rf1 $142 Qh5 28. Rf5) 27... f6 {[%emt 0:03:24]} 28. b5 {[%emt 0:00:40]} g6 {[%emt 0:05:16][%cal Bg7g6,Bg6f5][%mdl 32]} 29. Qb4 {[%emt 0:03:36]} Rd7 {[%emt 0:00:40]} 30. Rf1 {[%emt 0:00:57]} Qh5 {[%emt 0:01:43]} 31. b3 {[%emt 0:05:44]} f5 {[%emt 0:02:40]} 32. exf5 {[%emt 0:00:11]} gxf5 {[%emt 0:00:23][%cal Of5f4]} ({Weaker is} 32... Rxf5 33. g4 Qg5 34. h4 Qxh4 35. gxf5 $14) 33. b6 {[%emt 0:03:57]} axb6 {[%emt 0:00:12]} 34. Qxb6 {[%emt 0:00:08]} f4 {[%emt 0:01:14] Strongly threatening ...Rdf7.} 35. Qf2 {[%emt 0:05:31]} Rdf7 {[%emt 0:00:36] White must now prevent ...fxg3.} 36. b4 {[%emt 0:02:01]} fxg3 {[%emt 0:02:01] Black mates.} 37. Qxg3+ {[%emt 0:01:06]} Kh8 {[%emt 0:00:03]} 38. Rxf7 {[%emt 0:00:43]} Rxf7 {[%emt 0:00:37] Weighted Error Value: White=0.62/Black=0.21 (precise)} 0-1

[Event "Romanian Superleague 2022"]
[Site "Oradea"]
[Date "2022.09.23"]
[Round "3.3"]
[White "Jianu, Vlad-Cristian"]
[Black "Soltanici, Ruslan"]
[Result "1/2-1/2"]
[ECO "E24"]
[WhiteElo "2511"]
[BlackElo "2333"]
[Annotator "TA"]
[PlyCount "34"]
[EventDate "2022.09.21"]
[EventType "team-tourn"]
[EventCountry "ROU"]
[SourceTitle "playchess.com"]
[Source "ChessBase"]
[SourceQuality "1"]
[TimeControl "40/5400+30:1800+30"]

{[%evp 13,34,-29,-31,-29,-29,-30,-27,-31,-27,-35,-24,-36,-38,-37,-28,-44,0,8,21,0,0,0,0]} 1. d4 {[%emt 0:00:03]} Nf6 {[%emt 0:00:17]} 2. c4 {[%emt 0:00:07]} e6 {[%emt 0:00:16]} 3. Nc3 {[%emt 0:00:06]} Bb4 {[%emt 0:02:03]} 4. a3 {[%emt 0:00:07]} Bxc3+ {[%emt 0:00:15]} 5. bxc3 {[%emt 0:00:06]} d6 {[%emt 0:09:25]} 6. f3 {[%emt 0:01:11]} c5 {[%emt 0:05:08] seems to push 6...0-0 aside.} 7. e4 {[%emt 0:04:51]} Nc6 {[%emt 0:01:28]} 8. Ne2 {[%emt 0:00:17] E24: Nimzo-Indian: Sämisch: Unusual Black 5th moves and 5...c5 sidelines.} O-O {[%emt 0:08:51]} 9. Ng3 {[%emt 0:06:50]} b6 {[%emt 0:04:41]} 10. Be3 {[%emt 0:18:47] Black has an edge.} Ba6 {[%emt 0:08:44]} 11. Bd3 {[%emt 0:01:52]} Na5 {[%emt 0:13:07]} 12. Qe2 {[%emt 0:01:15]} cxd4 {[%emt 0:14:02]} 13. cxd4 {[%emt 0:00:10]} Rc8 {[%emt 0:00:25][%cal Ra6c4]} 14. Rc1 $1 {[%emt 0:00:27]} Qd7 {[%emt 0:00:47]} ({Black should play} 14... Nd7 $15) 15. O-O $11 {[%emt 0:08:44] The position is equal.} Qa4 {[%emt 0:01:30][%cal Ra6c4] [#]} 16. c5 $146 {[%emt 0:05:48]} ({Of course not} 16. e5 dxe5 17. dxe5 Nd7 $15) (16. Bg5 $5 {[%cal Rg5f6]} Nd7 17. Be7 $11) ({Predecessor:} 16. Bg5 Bxc4 17. Bxf6 gxf6 18. Nh5 Bxd3 19. Qxd3 Nb3 20. Rxc8 Rxc8 21. Nxf6+ Kg7 22. Nh5+ {0-1 (52) Kirszenberg,M (2130)-Colbow,C (2339) Chess.com INT 2021}) 16... Bxd3 {[%emt 0:02:26]} 17. Qxd3 {[%emt 0:00:05]} dxc5 {[%emt 0:02:17] Weighted Error Value: White=0.02 (flawless) /Black=0.07 (flawless)} 1/2-1/2